lending/lending_fUSD_20250425
["ID","MTS","AMOUNT","RATE_DAILY","PERIOD"]
[358916699,1745545098282,-1575.26,0.00050136,30]
[358916700,1745545098322,-3022.03,0.00050136,30]
[358916701,1745545098361,-500.0,0.00050136,30]
[358916702,1745545098402,-500.0,0.00050136,30]
[358916703,1745545098443,-500.0,0.00050136,30]
[358916704,1745545098483,-500.0,0.00050136,30]
[358916705,1745545098522,-719.69,0.00050136,30]
[358916706,1745545098563,-742.58,0.00050136,30]
[358916707,1745545098603,-500.0,0.00050136,30]
[358916708,1745545098643,-500.0,0.00050136,30]
[358916709,1745545098683,-1502.96,0.00050136,30]
[358916710,1745545098723,-695.81,0.00050136,30]
[358916711,1745545098762,-500.0,0.00050136,30]
[358916712,1745545098800,-500.0,0.00050136,30]
[358916713,1745545098839,-531.81819205,0.00050136,30]
[358916714,1745545098879,-663.3,0.00050136,30]
[358916715,1745545098918,-500.0,0.00050136,30]
[358916716,1745545098955,-678.67,0.00050136,30]
[358916717,1745545098995,-618.78,0.00050136,30]
[358916718,1745545099036,-764.82,0.00050136,30]
[358916719,1745545099075,-500.0,0.00050136,30]
[358916720,1745545099114,-1442.41,0.00050136,30]
[358916721,1745545099154,-2108.6,0.00050136,30]
[358916722,1745545099194,-500.0,0.00050136,30]
[358916723,1745545099233,-873.69,0.00050136,30]
[358916724,1745545099272,-599.18,0.00050136,30]
[358916725,1745545099314,-3086.13,0.00050136,30]
[358916726,1745545099354,-500.0,0.00050136,30]
[358916727,1745545099393,-1593.79,0.00050136,30]
[358916728,1745545099433,-2263.32,0.00050136,30]
[358916729,1745545099473,-500.0,0.00050136,30]
[358916730,1745545099515,-2700.89,0.00050136,30]
[358916731,1745545099555,-500.0,0.00050136,30]
[358916732,1745545099596,-795.15,0.00050136,30]
[358916733,1745545099636,-286.41314099,0.00050136,30]
[358916734,1745545099675,-585.93416577,0.00050136,30]
[358916735,1745545099712,-522.13,0.00050136,30]
[358916736,1745545099752,-500.0,0.00050136,30]
[358916737,1745545099791,-500.0,0.00050136,30]
[358916738,1745545099831,-1414.77,0.00050136,30]
[358916739,1745545099869,-500.0,0.00050136,30]
[358916740,1745545099908,-1268.35,0.00050136,30]
[358916741,1745545099948,-1107.8,0.00050136,30]
[358916742,1745545099985,-2000.0,0.00050136,120]
[358916743,1745545100024,-500.0,0.00050136,30]
[358916744,1745545100066,-879.02,0.00050136,30]
[358916745,1745545100104,-818.01,0.00050136,30]
[358916746,1745545100143,-1065.05,0.00050136,30]
[358916747,1745545100179,-1000.0,0.00050136,30]
[358916748,1745545100216,-1598.1,0.00050136,30]
[358916749,1745545100253,-4254.61,0.00050136,30]
[358916750,1745545100288,-500.0,0.00050136,30]
[358916751,1745545100326,-500.0,0.00050136,30]
[358916752,1745545100360,-500.0,0.00050136,30]
[358916753,1745545100396,-500.0,0.00050136,30]
[358916754,1745545100431,-500.0,0.00050136,30]
[358916755,1745545100466,-2090.38,0.00050136,30]
[358916756,1745545100752,-858.84,0.00050136,30]
[358916757,1745545100792,-752.9,0.00050136,30]
[358916758,1745545100832,-765.14,0.00050136,30]
[358916759,1745545100871,-500.0,0.00050136,30]
[358916760,1745545100906,-500.0,0.00050136,30]
[358916761,1745545100942,-1773.32,0.00050136,30]
[358916762,1745545100976,-1111.7,0.00050136,30]
[358916763,1745545101010,-1976.47,0.00050136,30]
[358916764,1745545101043,-500.0,0.00050136,30]
[358916765,1745545101077,-2108.59,0.00050136,30]
[358916766,1745545101109,-500.0,0.00050136,30]
[358916767,1745545101143,-1416.48,0.00050136,30]
[358916768,1745545101177,-500.0,0.00050136,30]
[358916769,1745545101215,-509.56,0.00050136,30]
[358916770,1745545101251,-700.32,0.00050136,30]
[358916771,1745545101287,-924.91,0.00050136,30]
[358916772,1745545101322,-690.7,0.00050136,30]
[358916773,1745545101356,-500.0,0.00050136,30]
[358916774,1745545101390,-500.0,0.00050136,30]
[358916775,1745545101427,-1140.87,0.00050136,30]
[358916776,1745545101462,-500.0,0.00050136,30]
[358916777,1745545101499,-254.41639874,0.00050136,30]
[358916778,1745545101537,-7822.1,0.00050136,30]
[358916779,1745545101575,-500.0,0.00050136,30]
[358916780,1745545101611,-871.81,0.00050136,30]
[358916781,1745545101646,-657.75,0.00050136,30]
[358916782,1745545101682,-500.0,0.00050136,30]
[358916783,1745545101716,-1613.27,0.00050136,30]
[358916784,1745545101750,-500.0,0.00050136,30]
[358916785,1745545101784,-415.51,0.00050136,30]
[358916786,1745545101819,-500.0,0.00050136,30]
[358916787,1745545101856,-8595.77,0.00050136,30]
[358916788,1745545101891,-500.0,0.00050136,30]
[358916789,1745545101925,-806.86,0.00050136,30]
[358916790,1745545101961,-828.35,0.00050136,30]
[358916791,1745545101998,-500.0,0.00050136,30]
[358916792,1745545102034,-500.0,0.00050136,30]
[358916793,1745545102070,-1103.09,0.00050136,30]
[358916794,1745545102107,-942.33,0.00050136,30]
[358916795,1745545102143,-500.0,0.00050136,30]
[358916796,1745545102179,-1310.31,0.00050136,30]
[358916797,1745545102215,-1476.33,0.00050136,30]
[358916798,1745545102250,-1855.1,0.00050136,30]
[358916799,1745545102284,-2687.81,0.00050136,30]
[358916800,1745545102318,-538.17234962,0.00050136,30]
[358916801,1745545102351,-1456.2,0.00050136,30]
[358916802,1745545102385,-1289.56,0.00050136,30]
[358916803,1745545102421,-500.0,0.00050136,30]
[358916804,1745545102455,-500.0,0.00050136,30]
[358916805,1745545102493,-1901.29,0.00050136,30]
[358916806,1745545102530,-500.0,0.00050136,30]
[358916807,1745545102568,-827.14,0.00050136,30]
[358916808,1745545102607,-500.0,0.00050136,30]
[358916809,1745545102647,-500.0,0.00050136,30]
[358916810,1745545102684,-500.0,0.00050136,30]
[358916811,1745545102723,-792.6,0.00050136,30]
[358916812,1745545102758,-500.0,0.00050136,30]
[358916813,1745545102794,-1103.01,0.00050136,30]
[358916814,1745545102833,-546.36,0.00050136,30]
[358916815,1745545102871,-1780.52,0.00050136,30]
[358916816,1745545102907,-500.0,0.00050136,30]
[358916817,1745545102943,-1012.63,0.00050136,30]
[358916818,1745545102976,-2937.58,0.00050136,30]
[358916819,1745545103011,-549.94980141,0.00050136,30]
[358916820,1745545103045,-500.0,0.00050136,30]
[358916821,1745545103081,-500.0,0.00050136,30]
[358916822,1745545103117,-541.09,0.00050136,30]
[358916823,1745545103154,-1812.49,0.00050136,30]
[358916824,1745545103193,-500.0,0.00050136,30]
[358916825,1745545103230,-500.0,0.00050136,30]
[358916826,1745545103274,-2325.32,0.00050136,30]
[358916827,1745545103315,-500.0,0.00050136,30]
[358916828,1745545103355,-2645.58,0.00050136,30]
[358916829,1745545103392,-500.0,0.00050136,30]
[358916830,1745545103428,-500.0,0.00050136,30]
[358916831,1745545103465,-500.0,0.00050136,30]
[358916832,1745545103505,-2124.79,0.00050136,30]
[358916833,1745545103548,-1616.8,0.00050136,30]
[358916834,1745545103589,-1776.77,0.00050136,30]
[358916835,1745545103631,-661.52,0.00050136,30]
[358916836,1745545103673,-500.0,0.00050136,30]
[358916837,1745545103714,-620.23,0.00050136,30]
[358916838,1745545103757,-1156.82,0.00050136,30]
[358916839,1745545103798,-2205.24,0.00050136,30]
[358916840,1745545103838,-781.78,0.00050136,30]
[358916841,1745545103876,-802.61,0.00050136,30]
[358916842,1745545103913,-500.0,0.00050136,30]
[358916843,1745545103951,-500.0,0.00050136,30]
[358916844,1745545103990,-3457.54,0.00050136,30]
[358916845,1745545104027,-515.47,0.00050136,30]
[358916846,1745545104064,-553.68,0.00050136,30]
[358916847,1745545104102,-943.43,0.00050136,30]
[358916848,1745545104142,-500.0,0.00050136,30]
[358916849,1745545104185,-990.31,0.00050136,30]
[358916850,1745545104225,-610.47,0.00050136,30]
[358916851,1745545104264,-2070.09,0.00050136,30]
[358916852,1745545104304,-491.68888764,0.00050136,30]
[358916853,1745545104346,-1324.47,0.00050136,30]
[358916854,1745545104385,-500.0,0.00050136,30]
[358916855,1745545104426,-500.0,0.00050136,30]
[358916856,1745545104466,-500.0,0.00050136,30]
[358916857,1745545104508,-3419.03,0.00050136,30]
[358916858,1745545104548,-3680.59,0.00050136,30]
[358916859,1745545104586,-500.0,0.00050136,30]
[358916860,1745545104885,-500.0,0.00050136,30]
[358916861,1745545104926,-982.56,0.00050136,30]
[358916862,1745545104965,-350.0,0.00050136,30]
[358916863,1745545105004,-500.0,0.00050136,30]
[358916864,1745545105044,-6091.61,0.00050136,30]
[358916865,1745545105087,-500.0,0.00050136,30]
[358916866,1745545105126,-347.97617238,0.00050136,30]
[358916867,1745545105168,-500.0,0.00050136,30]
[358916868,1745545105209,-1042.75,0.00050136,30]
[358916869,1745545105248,-755.73,0.00050136,30]
[358916870,1745545105286,-2124.75,0.00050136,30]
[358916871,1745545105325,-1207.25,0.00050136,30]
[358916872,1745545105366,-1232.59,0.00050136,30]
[358916873,1745545105403,-447.14389582,0.00050136,30]
[358916874,1745545105442,-500.0,0.00050136,30]
[358916875,1745545105482,-500.0,0.00050136,30]
[358916876,1745545105521,-767.48,0.00050136,30]
[358916877,1745545105560,-500.0,0.00050136,30]
[358916878,1745545105599,-787.17,0.00050136,30]
[358916879,1745545105636,-500.0,0.00050136,30]
[358916880,1745545105674,-1581.75,0.00050136,30]
[358916881,1745545105711,-500.0,0.00050136,30]
[358916882,1745545105747,-577.05063923,0.00050136,30]
[358916883,1745545105785,-1343.63,0.00050136,30]
[358916884,1745545105821,-2907.59,0.00050136,30]
[358916885,1745545105860,-895.82,0.00050136,30]
[358916886,1745545105897,-2590.97,0.00050136,30]
[358916887,1745545105934,-500.0,0.00050136,30]
[358916888,1745545105970,-500.0,0.00050136,30]
[358916889,1745545106006,-1122.52,0.00050136,30]
[358916890,1745545106041,-378.84223966,0.00050136,30]
[358916891,1745545106076,-543.24,0.00050136,30]
[358916892,1745545106111,-4014.71,0.00050136,30]
[358916893,1745545106147,-500.0,0.00050136,30]
[358916894,1745545106182,-500.0,0.00050136,30]
[358916895,1745545106218,-500.84,0.00050136,30]
[358916896,1745545106252,-925.93,0.00050136,30]
[358916897,1745545106286,-500.0,0.00050136,30]
[358916898,1745545106321,-500.0,0.00050136,30]
[358916899,1745545106357,-500.0,0.00050136,30]
[358916900,1745545106394,-500.0,0.00050136,30]
[358916901,1745545106429,-500.0,0.00050136,30]
[358916902,1745545106465,-901.52,0.00050136,30]
[358916903,1745545106500,-644.62,0.00050136,30]
[358916904,1745545106536,-1008.41,0.00050136,30]
[358916905,1745545106573,-2619.2,0.00050136,30]
[358916906,1745545106610,-1102.75,0.00050136,30]
[358916907,1745545106646,-609.09568792,0.00050136,30]
[358916908,1745545106681,-1503.08,0.00050136,30]
[358916909,1745545106717,-500.0,0.00050136,30]
[358916910,1745545106751,-817.1,0.00050136,30]
[358916911,1745545106787,-1147.58,0.00050136,30]
[358916912,1745545106823,-1000.0,0.00050136,120]
[358916913,1745545106861,-224.50459263,0.00050136,30]
[358916914,1745545106895,-4526.86,0.00050136,30]
[358916915,1745545106931,-1065.37,0.00050136,30]
[358916916,1745545106968,-508.6,0.00050136,30]
[358916917,1745545107003,-740.34,0.00050136,30]
[358916918,1745545107038,-1291.23,0.00050136,30]
[358916919,1745545107072,-500.0,0.00050136,30]
[358916920,1745545107113,-500.0,0.00050136,30]
[358916921,1745545107149,-500.0,0.00050136,30]
[358916922,1745545107183,-500.0,0.00050136,30]
[358916923,1745545107221,-500.0,0.00050136,30]
[358916924,1745545107257,-3944.13,0.00050136,30]
[358916925,1745545107290,-500.0,0.00050136,30]
[358916926,1745545107323,-593.9,0.00050136,30]
[358916927,1745545107356,-3738.13,0.00050136,30]
[358916928,1745545107390,-500.0,0.00050136,30]
[358916929,1745545107425,-814.96,0.00050136,30]
[358916930,1745545107459,-500.0,0.00050136,30]
[358916931,1745545107493,-500.0,0.00050136,30]
[358916932,1745545107529,-3013.74,0.00050136,30]
[358916933,1745545107570,-500.0,0.00050136,30]
[358916934,1745545107608,-500.0,0.00050136,30]
[358916935,1745545107648,-1940.43,0.00050136,30]
[358916936,1745545107688,-505.96,0.00050136,30]
[358916937,1745545107727,-802.86,0.00050136,30]
[358916938,1745545107766,-500.0,0.00050136,30]
[358916939,1745545107804,-831.63,0.00050136,30]
[358916940,1745545107842,-3690.41,0.00050136,30]
[358916941,1745545107879,-2007.82,0.00050136,30]
[358916942,1745545107916,-234.12436333,0.00050136,30]
[358916943,1745545107953,-500.0,0.00050136,30]
[358916944,1745545107989,-2561.77,0.00050136,30]
[358916945,1745545108027,-500.0,0.00050136,30]
[358916946,1745545108068,-500.0,0.00050136,30]
[358916947,1745545108106,-570.79666383,0.00050136,30]
[358916948,1745545108144,-500.0,0.00050136,30]
[358916949,1745545108181,-500.0,0.00050136,30]
[358916950,1745545108216,-500.0,0.00050136,30]
[358916951,1745545108251,-1709.19,0.00050136,30]
[358916952,1745545108284,-625.02,0.00050136,30]
[358916953,1745545108318,-500.0,0.00050136,30]
[358916954,1745545108352,-641.42,0.00050136,30]
[358916955,1745545108388,-625.36,0.00050136,30]
[358916956,1745545108425,-500.0,0.00050136,30]
[358916957,1745545108463,-500.0,0.00050136,30]
[358916958,1745545108500,-661.96,0.00050136,30]
[358916959,1745545108538,-500.0,0.00050136,30]
[358916960,1745545108576,-609.02290865,0.00050136,30]
[358916961,1745545108616,-2106.95,0.00050136,30]
[358916962,1745545108655,-891.31,0.00050136,30]
[358916963,1745545108926,-500.0,0.00050136,30]
[358916964,1745545108967,-500.0,0.00050136,30]
[358916965,1745545109005,-500.0,0.00050136,30]
[358916966,1745545109040,-500.0,0.00050136,30]
[358916967,1745545109076,-500.0,0.00050136,30]
[358916968,1745545109113,-2215.55,0.00050136,30]
[358916969,1745545109150,-253.23952419,0.00050136,30]
[358916970,1745545109187,-612.26,0.00050136,30]
[358916971,1745545109225,-1337.84,0.00050136,30]
[358916972,1745545109260,-10709.64,0.00050136,30]
[358916973,1745545109296,-500.0,0.00050136,30]
[358916974,1745545109330,-500.0,0.00050136,30]
[358916975,1745545109366,-500.0,0.00050136,30]
[358916976,1745545109402,-500.0,0.00050136,30]
[358916977,1745545109440,-500.0,0.00050136,30]
[358916978,1745545109480,-1976.56,0.00050136,30]
[358916979,1745545109519,-653.33,0.00050136,30]
[358916980,1745545109556,-596.77,0.00050136,30]
[358916981,1745545109596,-500.0,0.00050136,30]
[358916982,1745545109636,-1134.2,0.00050136,30]
[358916983,1745545109677,-500.0,0.00050136,30]
[358916984,1745545109716,-500.0,0.00050136,30]
[358916985,1745545109756,-500.0,0.00050136,30]
[358916986,1745545109795,-1112.33,0.00050136,30]
[358916987,1745545109836,-1448.03,0.00050136,30]
[358916988,1745545109875,-500.0,0.00050136,30]
[358916989,1745545109913,-841.68,0.00050136,30]
[358916990,1745545109952,-823.66,0.00050136,30]
[358916991,1745545109990,-500.0,0.00050136,30]
[358916992,1745545110027,-155.55675441,0.00050136,30]
[358916993,1745545110063,-500.0,0.00050136,30]
[358916994,1745545110099,-971.58,0.00050136,30]
[358916995,1745545110134,-500.0,0.00050136,30]
[358916996,1745545110171,-1808.75,0.00050136,30]
[358916997,1745545110206,-406.99448277,0.00050136,30]
[358916998,1745545110241,-500.0,0.00050136,30]
[358916999,1745545110276,-990.82,0.00050136,30]
[358917000,1745545110311,-500.0,0.00050136,30]
[358917001,1745545110344,-1821.84,0.00050136,30]
[358917002,1745545110380,-1960.52,0.00050136,30]
[358917003,1745545110417,-500.0,0.00050136,30]
[358917004,1745545110453,-1313.12,0.00050136,30]
[358917005,1745545110490,-500.0,0.00050136,30]
[358917006,1745545110527,-500.0,0.00050136,30]
[358917007,1745545110563,-500.0,0.00050136,30]
[358917008,1745545110602,-500.0,0.00050136,30]
[358917009,1745545110639,-553.12,0.00050136,30]
[358917010,1745545110676,-3715.78,0.00050136,30]
[358917011,1745545110712,-500.0,0.00050136,30]
[358917012,1745545110748,-672.15,0.00050136,30]
[358917013,1745545110782,-3817.81,0.00050136,30]
[358917014,1745545110817,-500.0,0.00050136,30]
[358917015,1745545110855,-1880.56,0.00050136,30]
[358917016,1745545110889,-500.0,0.00050136,30]
[358917017,1745545110924,-893.18,0.00050136,30]
[358917018,1745545110959,-500.0,0.00050136,30]
[358917019,1745545110994,-1498.23,0.00050136,30]
[358917020,1745545111029,-500.0,0.00050136,30]
[358917021,1745545111064,-500.0,0.00050136,30]
[358917022,1745545111101,-500.0,0.00050136,30]
[358917023,1745545111138,-527.98349465,0.00050136,30]
[358917024,1745545111177,-500.0,0.00050136,30]
[358917025,1745545111214,-500.0,0.00050136,30]
[358917026,1745545111255,-620.16,0.00050136,30]
[358917027,1745545111293,-500.0,0.00050136,30]
[358917028,1745545111330,-500.0,0.00050136,30]
[358917029,1745545111366,-500.0,0.00050136,30]
[358917030,1745545111403,-500.0,0.00050136,30]
[358917031,1745545111440,-500.0,0.00050136,30]
[358917032,1745545111479,-608.18,0.00050136,30]
[358917033,1745545111518,-1073.32,0.00050136,30]
[358917034,1745545111556,-1008.53,0.00050136,30]
[358917035,1745545111595,-1524.36,0.00050136,30]
[358917036,1745545111634,-500.0,0.00050136,30]
[358917037,1745545111671,-1015.49,0.00050136,30]
[358917038,1745545111708,-557.66,0.00050136,30]
[358917039,1745545111747,-558.64,0.00050136,30]
[358917040,1745545111783,-966.47,0.00050136,30]
[358917041,1745545111820,-500.0,0.00050136,30]
[358917042,1745545111860,-500.0,0.00050136,30]
[358917043,1745545111897,-692.33,0.00050136,30]
[358917044,1745545111937,-500.0,0.00050136,30]
[358917045,1745545111973,-1717.47,0.00050136,30]
[358917046,1745545112008,-2016.33,0.00050136,30]
[358917047,1745545112043,-500.0,0.00050136,30]
[358917048,1745545112077,-3170.03,0.00050136,30]
[358917049,1745545112113,-2357.56,0.00050136,30]
[358917050,1745545112149,-500.0,0.00050136,30]
[358917051,1745545112185,-1600.56,0.00050136,30]
[358917052,1745545112220,-936.5,0.00050136,30]
[358917053,1745545112254,-500.0,0.00050136,30]
[358917054,1745545112290,-2103.74,0.00050136,30]
[358917055,1745545112326,-500.0,0.00050136,30]
[358917056,1745545112360,-500.0,0.00050136,30]
[358917057,1745545112396,-1286.01,0.00050136,30]
[358917058,1745545112434,-988.18,0.00050136,30]
[358917059,1745545112471,-500.0,0.00050136,30]
[358917060,1745545112507,-500.0,0.00050136,30]
[358917061,1745545112545,-500.0,0.00050136,30]
[358917062,1745545112580,-500.0,0.00050136,30]
[358917063,1745545112618,-1226.29,0.00050136,30]
[358917064,1745545112655,-500.0,0.00050136,30]
[358917065,1745545112690,-500.0,0.00050136,30]
[358917066,1745545112725,-664.11,0.00050136,30]
[358917067,1745545112958,-500.0,0.00050136,30]
[358917068,1745545112998,-1286.96,0.00050136,30]
[358917069,1745545113039,-722.24,0.00050136,30]
[358917070,1745545113080,-500.0,0.00050136,30]
[358917071,1745545113120,-500.0,0.00050136,30]
[358917072,1745545113162,-971.1,0.00050136,30]
[358917073,1745545113203,-500.0,0.00050136,30]
[358917074,1745545113244,-796.66,0.00050136,30]
[358917075,1745545113285,-500.0,0.00050136,30]
[358917076,1745545113326,-500.0,0.00050136,30]
[358917078,1745545113366,-1402.77,0.00050136,30]
[358917079,1745545113407,-500.0,0.00050136,30]
[358917080,1745545113449,-500.0,0.00050136,30]
[358917081,1745545113490,-500.0,0.00050136,30]
[358917082,1745545113532,-41511.09,0.00050136,30]
[358917083,1745545113576,-2669.76,0.00050136,30]
[358917084,1745545113618,-539.06704046,0.00050136,30]
[358917085,1745545113660,-1999.03,0.00050136,30]
[358917086,1745545113701,-533.3,0.00050136,30]
[358917087,1745545113742,-500.0,0.00050136,30]
[358917088,1745545113785,-500.0,0.00050136,30]
[358917089,1745545113826,-500.0,0.00050136,30]
[358917090,1745545113875,-1636.56,0.00050136,30]
[358917091,1745545113916,-500.0,0.00050136,30]
[358917092,1745545113957,-478.63712514,0.00050136,30]
[358917093,1745545113996,-684.27,0.00050136,30]
[358917094,1745545114035,-500.0,0.00050136,30]
[358917095,1745545114074,-500.0,0.00050136,30]
[358917096,1745545114114,-500.0,0.00050136,30]
[358917097,1745545114155,-20814.49,0.00050136,30]
[358917098,1745545114196,-500.0,0.00050136,30]
[358917099,1745545114236,-686.42,0.00050136,30]
[358917100,1745545114276,-500.0,0.00050136,30]
[358917101,1745545114315,-1152.0,0.00050137,30]
[358917102,1745545114353,-150.0,0.00050155,120]
[358917103,1745545114391,-152.0,0.00050215,34]
[358917104,1745545114434,-496488.34891614,0.0005025,120]
[358917109,1745545157661,-1187.24280385,0.00040658,120]
[358917110,1745545157705,-276.842,0.000422,63]
[358917111,1745545157796,-500.0,0.00049315,30]
[358917112,1745545157835,-500.0,0.00049315,30]
[358917113,1745545157878,-500.0,0.00049315,30]
[358917114,1745545157917,-500.0,0.00049315,30]
[358917115,1745545157956,-500.0,0.00049315,30]
[358917116,1745545157994,-300.0,0.00049315,30]
[358917117,1745545158033,-500.0,0.00049315,30]
[358917118,1745545158071,-607.09,0.00049315,30]
[358917119,1745545158109,-1527.68,0.00049315,30]
[358917120,1745545158145,-500.0,0.00049315,30]
[358917121,1745545158182,-500.0,0.00049315,30]
[358917122,1745545158219,-500.0,0.00049315,30]
[358917123,1745545158256,-500.0,0.00049315,30]
[358917124,1745545158292,-500.0,0.00049315,30]
[358917125,1745545158327,-500.0,0.00049315,30]
[358917126,1745545158361,-500.0,0.00049315,30]
[358917127,1745545158395,-500.0,0.00049315,30]
[358917128,1745545158432,-1591.81,0.00049315,30]
[358917129,1745545158470,-511.81243235,0.00049315,30]
[358917130,1745545158508,-500.0,0.00049315,30]
[358917131,1745545158547,-575.38,0.00049315,30]
[358917132,1745545158586,-500.0,0.00049315,30]
[358917133,1745545158623,-500.0,0.00049315,30]
[358917134,1745545158661,-500.0,0.00049315,30]
[358917135,1745545158699,-500.0,0.00049315,30]
[358917136,1745545158738,-500.0,0.00049315,30]
[358917137,1745545158775,-500.0,0.00049315,30]
[358917138,1745545158811,-500.0,0.00049315,30]
[358917139,1745545158849,-500.0,0.00049315,30]
[358917140,1745545158884,-500.0,0.00049315,30]
[358917141,1745545158919,-525.45052798,0.00049315,30]
[358917142,1745545158956,-500.0,0.00049315,30]
[358917143,1745545158991,-500.0,0.00049315,30]
[358917144,1745545159027,-500.0,0.00049315,30]
[358917145,1745545159062,-500.0,0.00049315,30]
[358917146,1745545159099,-500.0,0.00049315,30]
[358917147,1745545159135,-500.0,0.00049315,30]
[358917148,1745545159172,-500.0,0.00049315,30]
[358917149,1745545159211,-1012.07,0.00049315,30]
[358917150,1745545159249,-500.0,0.00049315,30]
[358917151,1745545159287,-500.0,0.00049315,30]
[358917152,1745545159325,-500.0,0.00049315,30]
[358917153,1745545159364,-500.0,0.00049315,30]
[358917154,1745545159404,-500.0,0.00049315,30]
[358917155,1745545159443,-500.0,0.00049315,30]
[358917156,1745545159483,-500.0,0.00049315,30]
[358917157,1745545159523,-541.1983626,0.00049315,30]
[358917158,1745545159562,-500.0,0.00049315,30]
[358917159,1745545159602,-1098.37,0.00049315,30]
[358917160,1745545159641,-553.09763497,0.00049315,30]
[358917161,1745545159680,-541.28,0.00049315,30]
[358917162,1745545159720,-1031.74,0.00049315,30]
[358917163,1745545159759,-1116.42,0.00049315,30]
[358917164,1745545159797,-500.0,0.00049315,30]
[358917165,1745545159835,-500.0,0.00049315,30]
[358917166,1745545159875,-198.07404623,0.00049315,30]
[358917167,1745545159915,-520.89491647,0.00049315,30]
[358917168,1745545159954,-546.69,0.00049315,30]
[358917169,1745545159991,-500.0,0.00049315,30]
[358917170,1745545160028,-515.2579594,0.00049315,30]
[358917171,1745545160358,-500.0,0.00049315,30]
[358917172,1745545160401,-500.0,0.00049315,30]
[358917173,1745545160450,-500.0,0.00049315,30]
[358917174,1745545160494,-500.0,0.00049315,30]
[358917175,1745545160536,-500.0,0.00049315,30]
[358917176,1745545160577,-500.0,0.00049315,30]
[358917177,1745545160618,-500.0,0.00049315,30]
[358917178,1745545160659,-500.0,0.00049315,30]
[358917179,1745545160701,-500.0,0.00049315,30]
[358917180,1745545160742,-500.0,0.00049315,30]
[358917181,1745545160780,-500.0,0.00049315,30]
[358917182,1745545160821,-500.0,0.00049315,30]
[358917183,1745545160860,-500.0,0.00049315,30]
[358917184,1745545160899,-500.0,0.00049315,30]
[358917185,1745545160938,-500.0,0.00049315,30]
[358917186,1745545160976,-500.0,0.00049315,30]
[358917187,1745545161015,-500.0,0.00049315,30]
[358917188,1745545161056,-500.0,0.00049315,30]
[358917189,1745545161096,-156.13934076,0.00049315,30]
[358917190,1745545161137,-500.0,0.00049315,30]
[358917191,1745545161177,-397.54146906,0.00049315,30]
[358917192,1745545161217,-500.0,0.00049315,30]
[358917193,1745545161255,-500.0,0.00049315,30]
[358917194,1745545161293,-526.56769593,0.00049315,30]
[358917195,1745545161331,-500.0,0.00049315,30]
[358917196,1745545161370,-1901.47,0.00049315,30]
[358917197,1745545161410,-500.0,0.00049315,30]
[358917198,1745545161449,-500.0,0.00049315,30]
[358917199,1745545161489,-500.0,0.00049315,30]
[358917200,1745545161531,-500.0,0.00049315,30]
[358917201,1745545161571,-303.2467606,0.00049315,30]
[358917202,1745545161611,-500.0,0.00049315,30]
[358917203,1745545161652,-500.0,0.00049315,30]